fUSD/lending_fUSD_20240526
["ID","MTS","AMOUNT","RATE_DAILY","PERIOD"]
[327975833,1716732688435,-1310.5,0.00029863,4]
[327975834,1716732688444,-500.0,0.00029863,4]
[327975835,1716732688454,-552.73,0.00029863,4]
[327975836,1716732688463,-967.98,0.00029863,4]
[327975837,1716732688477,-500.0,0.00029863,4]
[327975838,1716732688487,-1148.48,0.00029863,4]
[327975839,1716732688496,-795.96,0.00029863,4]
[327975840,1716732688511,-678.18,0.00029863,4]
[327975841,1716732688520,-500.0,0.00029863,4]
[327975842,1716732688529,-576.35,0.00029863,4]
[327975843,1716732688538,-500.0,0.00029863,4]
[327975844,1716732688550,-585.71,0.00029863,4]
[327975845,1716732688559,-606.32,0.00029863,4]
[327975846,1716732688568,-1027.88,0.00029863,4]
[327975847,1716732688578,-2390.71,0.00029863,4]
[327975848,1716732688587,-720.94,0.00029863,4]
[327975849,1716732688596,-884.01,0.00029863,4]
[327975850,1716732688606,-571.26,0.00029863,4]
[327975851,1716732688616,-1408.04,0.00029863,4]
[327975852,1716732688633,-500.0,0.00029863,4]
[327975853,1716732688642,-500.0,0.00029863,4]
[327975854,1716732688653,-500.0,0.00029863,4]
[327975855,1716732688663,-500.0,0.00029863,4]
[327975856,1716732688672,-1268.26,0.00029863,4]
[327975857,1716732688683,-1085.42,0.00029863,4]
[327975858,1716732688691,-8694.34,0.00029863,4]
[327975859,1716732688701,-500.0,0.00029863,4]
[327975860,1716732688710,-1268.05,0.00029863,4]
[327975861,1716732688720,-1448.06,0.00029863,4]
[327975862,1716732688730,-972.62,0.00029863,4]
[327975863,1716732688739,-3904.28,0.00029863,4]
[327975864,1716732688749,-573.16,0.00029863,4]
[327975865,1716732688758,-914.87,0.00029863,4]
[327975866,1716732688768,-1089.59,0.00029863,4]
[327975867,1716732688778,-500.0,0.00029863,4]
[327975868,1716732688787,-885.34,0.00029863,4]
[327975869,1716732688796,-591.51,0.00029863,4]
[327975870,1716732688805,-500.0,0.00029863,4]
[327975871,1716732688815,-1079.94,0.00029863,4]
[327975872,1716732688824,-879.76,0.00029863,4]
[327975873,1716732688833,-1841.81,0.00029863,4]
[327975874,1716732688843,-500.0,0.00029863,4]
[327975875,1716732688852,-625.43,0.00029863,4]
[327975876,1716732688862,-1077.58,0.00029863,4]
[327975877,1716732688872,-500.0,0.00029863,4]
[327975878,1716732688881,-710.46,0.00029863,4]
[327975879,1716732688891,-647.72,0.00029863,4]
[327975880,1716732688900,-568.85,0.00029863,4]
[327975881,1716732688909,-678.18,0.00029863,4]
[327975882,1716732688918,-869.84,0.00029863,4]
[327975883,1716732688928,-500.0,0.00029863,4]
[327975884,1716732688938,-500.0,0.00029863,4]
[327975885,1716732688948,-717.42,0.00029863,4]
[327975886,1716732688960,-576.0,0.00029863,4]
[327975887,1716732688970,-1137.45,0.00029863,4]
[327975888,1716732688979,-500.0,0.00029863,4]
[327975889,1716732688988,-500.0,0.00029863,4]
[327975890,1716732688998,-500.0,0.00029863,4]
[327975891,1716732689007,-500.0,0.00029863,4]
[327975892,1716732689016,-1101.55,0.00029863,4]
[327975893,1716732689025,-623.77,0.00029863,4]
[327975894,1716732689034,-504.89,0.00029863,4]
[327975895,1716732689044,-570.33,0.00029863,4]
[327975896,1716732689052,-853.64,0.00029863,4]
[327975897,1716732689062,-1592.22,0.00029863,4]
[327975898,1716732689071,-1027.97,0.00029863,4]
[327975899,1716732689081,-1044.37,0.00029863,4]
[327975900,1716732689090,-500.0,0.00029863,4]
[327975901,1716732689099,-1313.69,0.00029863,4]
[327975902,1716732689108,-624.18,0.00029863,4]
[327975903,1716732689117,-1190.26,0.00029863,4]
[327975904,1716732689126,-4137.91,0.00029863,4]
[327975905,1716732689135,-1036.79,0.00029863,4]
[327975906,1716732689144,-500.0,0.00029863,4]
[327975907,1716732689152,-500.0,0.00029863,4]
[327975908,1716732689162,-850.51,0.00029863,4]
[327975909,1716732689172,-916.61,0.00029863,4]
[327975910,1716732689182,-500.0,0.00029863,4]
[327975911,1716732689192,-1474.98,0.00029863,4]
[327975912,1716732689201,-707.12,0.00029863,4]
[327975913,1716732689211,-500.0,0.00029863,4]
[327975914,1716732689220,-2412.83,0.00029863,4]
[327975915,1716732689230,-500.0,0.00029863,4]
[327975916,1716732689240,-500.0,0.00029863,4]
[327975917,1716732689250,-687.58,0.00029863,4]
[327975918,1716732689260,-1038.84,0.00029863,4]
[327975919,1716732689269,-500.0,0.00029863,2]
[327975920,1716732689279,-500.0,0.00029863,4]
[327975921,1716732689289,-500.0,0.00029863,4]
[327975922,1716732689299,-928.91,0.00029863,4]
[327975923,1716732689309,-654.73,0.00029863,4]
[327975924,1716732689319,-500.0,0.00029863,4]
[327975925,1716732689329,-592.19,0.00029863,4]
[327975926,1716732689339,-502.52,0.00029863,4]
[327975927,1716732689349,-500.0,0.00029863,4]
[327975928,1716732689359,-231.84935652,0.00029863,4]
[327975929,1716732689369,-500.0,0.00029863,4]
[327975930,1716732689379,-1244.5,0.00029863,4]
[327975931,1716732689389,-586.69,0.00029863,4]
[327975932,1716732689399,-827.03,0.00029863,4]
[327975933,1716732689409,-901.87,0.00029863,4]
[327975934,1716732689419,-793.2,0.00029863,4]
[327975935,1716732689429,-501.48,0.00029863,4]
[327975936,1716732689438,-709.61,0.00029863,4]
[327975937,1716732689447,-50088.78257423,0.0002988,7]
[327975938,1716732689456,-2000.0,0.000299,2]
[327975939,1716732689467,-445.0,0.000299,18]
[327975940,1716732689478,-9695.02091,0.00029906,2]
[327975941,1716732689487,-12500.0,0.00029919,2]
[327975942,1716732689497,-444.0,0.00029978,2]
[327975943,1716732689507,-991.19748296,0.00029994,2]
[327975944,1716732689516,-198.35740164,0.00029996,2]
[327975945,1716732689525,-231.32525502,0.00029997,7]
[327975946,1716732689535,-150.0,0.00029997,7]
[327975947,1716732689547,-150.0,0.00029997,7]
[327975948,1716732689557,-150.0,0.00029997,7]
[327975949,1716732689567,-5693.61734445,0.0003,2]
[327975950,1716732689576,-2345.12481961,0.0003,4]
[327975951,1716732689585,-1000.0,0.0003,7]
[327975952,1716732689594,-500.0,0.0003,2]
[327975953,1716732689603,-500.0,0.0003,2]
[327975954,1716732689613,-5587.5205815,0.0003,2]
[327975955,1716732689622,-445.3898227,0.0003,2]
[327975956,1716732689631,-200.04423145,0.0003,4]
[327975957,1716732689640,-1000.0,0.0003,2]
[327975958,1716732689649,-500.0,0.0003,2]
[327975959,1716732689658,-4839.08879581,0.0003,2]
[327975960,1716732689667,-891.78,0.0003,14]
[327975961,1716732689676,-250.0,0.0003,30]
[327975962,1716732689686,-250.0,0.0003,30]
[327975963,1716732689694,-250.0,0.0003,30]
[327975964,1716732689703,-250.0,0.0003,20]
[327975965,1716732689713,-250.35561032,0.0003,20]
[327975966,1716732689722,-4951.39919844,0.0003,2]
[327975967,1716732689732,-328105.44062548,0.0003,30]
[327975968,1716732689742,-23844.69262994,0.0003,4]
[327975969,1716732689751,-684.35975495,0.0003,4]
[327975970,1716732689760,-19403.63375217,0.0003,4]
[327975971,1716732689770,-2000.0,0.0003,2]
[327975972,1716732689779,-1517.35595682,0.0003,2]
[327975973,1716732689789,-500.0,0.0003,2]
[327975974,1716732689798,-151.0,0.0003,7]
[327975975,1716732689807,-151.0,0.0003,7]
[327975976,1716732689816,-500.0,0.0003,2]
[327975977,1716732689826,-500.0,0.0003,2]
[327975978,1716732689835,-500.0,0.0003,2]
[327975979,1716732689844,-500.0,0.0003,2]
[327975980,1716732689853,-193.036136,0.0003,7]
[327975981,1716732689863,-193.036126,0.0003,7]
[327975982,1716732689872,-371.37065,0.0003,7]
[327975983,1716732689882,-856.1063,0.0003,7]
[327975984,1716732689892,-371.370646,0.0003,7]
[327975985,1716732689901,-856.106302,0.0003,7]
[327975986,1716732689910,-208.0,0.0003,2]
[327975987,1716732689919,-156.1736614,0.00030001,7]
[327975988,1716732689929,-300.0,0.00030055,2]
[327975989,1716732689938,-753.04240616,0.0003009,7]
[327975990,1716732689947,-232.27766012,0.0003009,7]
[327975991,1716732689957,-249.23485907,0.0003009,7]
[327975992,1716732689966,-2006.01668888,0.0003009,7]
[327975993,1716732689975,-6319.53129615,0.00030097,2]
[327975994,1716732689984,-235.22611562,0.00030136,2]
[327975995,1716732689993,-500.0,0.00030136,4]
[327975996,1716732690002,-500.0,0.00030136,4]
[327975997,1716732690011,-500.0,0.00030136,4]
[327975998,1716732690021,-500.0,0.00030136,4]
[327975999,1716732690030,-867.51,0.00030136,4]
[327976000,1716732690039,-500.0,0.00030136,4]
[327976001,1716732690048,-500.0,0.00030136,4]
[327976002,1716732690058,-613.37,0.00030136,4]
[327976003,1716732690068,-500.0,0.00030136,4]
[327976004,1716732690079,-164.3827445,0.00030136,4]
[327976005,1716732690089,-689.25,0.00030136,4]
[327976006,1716732690098,-912.17,0.00030136,4]
[327976007,1716732690108,-500.0,0.00030136,4]
[327976008,1716732690117,-500.0,0.00030136,4]
[327976009,1716732690127,-577.1,0.00030136,4]
[327976010,1716732690136,-3083.08,0.00030136,4]
[327976011,1716732690146,-500.0,0.00030136,4]
[327976012,1716732690155,-500.0,0.00030136,4]
[327976013,1716732690164,-691.79,0.00030136,4]
[327976014,1716732690174,-500.0,0.00030136,4]
[327976015,1716732690184,-500.0,0.00030136,4]
[327976016,1716732690194,-1003.57,0.00030136,4]
[327976017,1716732690204,-702.93,0.00030136,4]
[327976018,1716732690213,-500.0,0.00030136,4]
[327976019,1716732690224,-500.0,0.00030136,4]
[327976020,1716732690234,-900.58,0.00030136,4]
[327976021,1716732690244,-500.0,0.00030136,4]
[327976022,1716732690254,-500.0,0.00030136,4]
[327976023,1716732690263,-891.34,0.00030136,4]
[327976024,1716732690273,-838.16,0.00030136,2]
[327976025,1716732690282,-500.0,0.00030136,4]
[327976026,1716732690292,-500.0,0.00030136,4]
[327976027,1716732690301,-576.75,0.00030136,4]
[327976028,1716732690311,-615.98,0.00030136,4]
[327976029,1716732690320,-500.0,0.00030136,4]
[327976030,1716732690330,-767.17,0.00030136,4]
[327976031,1716732690339,-633.88,0.00030136,4]
[327976032,1716732690348,-500.0,0.00030136,4]
[327976033,1716732690358,-758.6,0.00030136,4]
[327976034,1716732690368,-1363.1,0.00030136,4]
[327976035,1716732690378,-500.0,0.00030136,4]
[327976036,1716732690388,-500.0,0.00030136,4]
[327976037,1716732690398,-535.29,0.00030136,4]
[327976038,1716732690408,-500.0,0.00030136,4]
[327976039,1716732690417,-500.0,0.00030136,4]
[327976040,1716732690427,-596.76,0.00030136,4]
[327976041,1716732690437,-500.0,0.00030136,4]
[327976042,1716732690447,-500.0,0.00030136,4]
[327976043,1716732690457,-500.0,0.00030136,4]
[327976044,1716732690469,-500.0,0.00030136,4]
[327976045,1716732690480,-500.0,0.00030136,4]
[327976046,1716732690490,-500.0,0.00030136,4]
[327976047,1716732690499,-500.0,0.00030136,4]
[327976048,1716732690511,-1000.0,0.00030136,5]
[327976049,1716732690520,-1000.0,0.00030136,5]
[327976050,1716732690530,-1000.0,0.00030136,5]
[327976051,1716732690539,-1000.0,0.00030136,5]
[327976052,1716732690551,-1000.0,0.00030136,5]
[327976053,1716732690561,-1000.0,0.00030136,5]
[327976054,1716732690570,-1000.0,0.00030136,5]
[327976055,1716732690580,-500.0,0.00030136,4]
[327976056,1716732690589,-1000.0,0.00030136,5]
[327976057,1716732690599,-1000.0,0.00030136,5]
[327976058,1716732690609,-1000.0,0.00030136,5]
[327976059,1716732690618,-1000.0,0.00030136,5]
[327976060,1716732690628,-500.0,0.00030136,4]
[327976061,1716732690641,-500.0,0.00030136,4]
[327976062,1716732690657,-500.0,0.00030136,4]
[327976063,1716732690667,-638.58,0.00030136,4]
[327976064,1716732690677,-500.0,0.00030136,4]
[327976065,1716732690689,-813.06,0.00030136,4]
[327976066,1716732690699,-676.35,0.00030136,4]
[327976067,1716732690709,-500.0,0.00030136,4]
[327976068,1716732690718,-1206.79,0.00030136,4]
[327976069,1716732690728,-500.0,0.00030136,4]
[327976070,1716732690739,-758.9,0.00030136,4]
[327976071,1716732690748,-500.0,0.00030136,4]
[327976072,1716732690758,-500.0,0.00030136,4]
[327976073,1716732690767,-500.0,0.00030136,4]
[327976074,1716732690777,-500.0,0.00030136,4]
[327976075,1716732690787,-500.0,0.00030136,4]
[327976076,1716732690796,-544.35,0.00030136,2]
[327976077,1716732690806,-500.0,0.00030136,4]
[327976078,1716732690816,-500.0,0.00030136,4]
[327976079,1716732690826,-500.0,0.00030136,4]
[327976080,1716732690836,-500.0,0.00030136,4]
[327976081,1716732690847,-500.0,0.00030136,4]
[327976082,1716732690856,-607.01,0.00030136,4]
[327976083,1716732690866,-869.48,0.00030136,4]
[327976084,1716732690875,-500.0,0.00030136,4]
[327976085,1716732690884,-337.31672362,0.00030136,4]
[327976086,1716732690894,-500.0,0.00030136,4]
[327976087,1716732690904,-598.19,0.00030136,4]
[327976088,1716732690913,-501.39,0.00030136,4]
[327976089,1716732690922,-565.06,0.00030136,4]
[327976090,1716732690933,-500.0,0.00030136,4]
[327976091,1716732690943,-536.08,0.00030136,4]
[327976092,1716732690952,-500.0,0.00030136,4]
[327976093,1716732690962,-500.0,0.00030136,4]
[327976094,1716732690971,-500.0,0.00030136,4]
[327976095,1716732690981,-500.0,0.00030136,4]
[327976096,1716732690991,-455.146338,0.00030136,4]
[327976097,1716732691001,-500.0,0.00030136,4]
[327976098,1716732691011,-500.0,0.00030136,4]
[327976099,1716732691021,-500.0,0.00030136,4]
[327976100,1716732691031,-500.0,0.00030136,4]
[327976101,1716732691040,-388.64158458,0.00030136,4]
[327976102,1716732691050,-500.0,0.00030136,4]
[327976103,1716732691060,-575.01,0.00030136,4]
[327976104,1716732691069,-500.0,0.00030136,4]
[327976105,1716732691079,-500.0,0.00030136,4]
[327976106,1716732691088,-500.0,0.00030136,4]
[327976107,1716732691098,-500.0,0.00030136,4]
[327976108,1716732691107,-179.19,0.00030136,4]
[327976109,1716732691117,-664.28,0.00030136,4]
[327976110,1716732691127,-500.0,0.00030136,4]
[327976111,1716732691137,-500.0,0.00030136,4]
[327976112,1716732691147,-500.0,0.00030136,4]
[327976113,1716732691156,-500.0,0.00030136,4]
[327976114,1716732691166,-1420.49,0.00030136,4]
[327976115,1716732691176,-500.0,0.00030136,4]
[327976116,1716732691188,-500.0,0.00030136,4]
[327976117,1716732691197,-500.0,0.00030136,4]
[327976118,1716732691206,-911.95,0.00030136,4]
[327976119,1716732691216,-532.91,0.00030136,4]
[327976120,1716732691226,-876.64,0.00030136,4]
[327976121,1716732691235,-845.02,0.00030136,4]
[327976122,1716732691245,-500.0,0.00030136,4]
[327976124,1716732691255,-1217.15,0.00030136,4]
[327976125,1716732691264,-500.0,0.00030136,4]
[327976126,1716732691274,-500.0,0.00030136,4]
[327976127,1716732691283,-500.0,0.00030136,4]
[327976128,1716732691293,-500.0,0.00030136,4]
[327976129,1716732691302,-1573.33,0.00030136,4]
[327976130,1716732691312,-500.0,0.00030136,4]
[327976131,1716732691321,-1943.35,0.00030136,4]
[327976132,1716732691332,-647.0,0.00030136,4]
[327976133,1716732691342,-827.18,0.00030136,4]
[327976134,1716732691352,-525.9,0.00030136,4]
[327976135,1716732691362,-1647.19,0.00030136,4]
[327976136,1716732691370,-812.79,0.00030136,4]
[327976137,1716732691380,-656.92,0.00030136,4]
[327976138,1716732691390,-1479.16,0.00030136,4]
[327976139,1716732691399,-500.0,0.00030136,4]
[327976140,1716732691409,-859.25,0.00030136,4]
[327976141,1716732691419,-500.0,0.00030136,4]
[327976142,1716732691431,-705.7,0.00030136,4]
[327976143,1716732691440,-524.26,0.00030136,4]
[327976144,1716732691449,-500.0,0.00030136,4]
[327976145,1716732691459,-852.83,0.00030136,4]
[327976146,1716732691476,-792.18,0.00030136,4]
[327976147,1716732691490,-9047.47,0.00030136,4]
[327976148,1716732691500,-2563.75,0.00030136,4]
[327976149,1716732691510,-500.0,0.00030136,4]
[327976150,1716732691522,-500.0,0.00030136,4]
[327976151,1716732691532,-543.61,0.00030136,4]
[327976152,1716732691542,-937.7,0.00030136,4]
[327976153,1716732691552,-657.54,0.00030136,4]
[327976154,1716732691562,-1533.52,0.00030136,4]
[327976155,1716732691572,-782.0,0.00030136,4]
[327976156,1716732691582,-1870.6,0.00030136,4]
[327976157,1716732691591,-500.0,0.00030136,4]
[327976158,1716732691601,-523.58,0.00030136,4]
[327976159,1716732691611,-611.87,0.00030136,4]
[327976160,1716732691621,-662.47,0.00030136,4]
[327976161,1716732691631,-709.98,0.00030136,4]
[327976162,1716732691640,-500.0,0.00030136,4]
[327976163,1716732691650,-500.0,0.00030136,4]
[327976164,1716732691660,-739.81,0.00030136,4]
[327976165,1716732691671,-6199.76,0.00030136,4]
[327976166,1716732691681,-500.0,0.00030136,4]
[327976167,1716732691691,-724.86,0.00030136,4]
[327976168,1716732691702,-1320.63,0.00030136,4]
[327976169,1716732691711,-500.0,0.00030136,4]
[327976170,1716732691721,-500.0,0.00030136,4]
[327976171,1716732691732,-500.0,0.00030136,4]
[327976172,1716732691742,-852.95,0.00030136,4]
[327976173,1716732691752,-2564.82,0.00030136,4]
[327976174,1716732691762,-818.52,0.00030136,4]
[327976175,1716732691772,-571.73,0.00030136,4]
[327976176,1716732691781,-2538.12,0.00030136,4]
[327976177,1716732691791,-500.0,0.00030136,4]
[327976178,1716732691800,-598.56,0.00030136,4]
[327976179,1716732691810,-500.0,0.00030136,4]
[327976180,1716732691820,-2937.07,0.00030136,4]
[327976181,1716732691829,-1041.17,0.00030136,4]
[327976182,1716732691839,-500.0,0.00030136,4]
[327976183,1716732691850,-500.0,0.00030136,4]
[327976184,1716732691860,-656.51,0.00030136,4]
[327976185,1716732691870,-1310.5,0.00030136,4]
[327976186,1716732691880,-500.0,0.00030136,4]
[327976187,1716732691890,-552.73,0.00030136,4]
[327976188,1716732691900,-967.98,0.00030136,4]
[327976189,1716732691909,-500.0,0.00030136,4]
[327976190,1716732691919,-1148.48,0.00030136,4]
[327976191,1716732691928,-795.96,0.00030136,4]
[327976192,1716732691938,-500.0,0.00030136,4]
[327976193,1716732691948,-678.18,0.00030136,4]
[327976194,1716732691958,-576.35,0.00030136,4]
[327976195,1716732691968,-500.0,0.00030136,4]
[327976196,1716732691978,-585.71,0.00030136,4]
[327976197,1716732691988,-606.32,0.00030136,4]
[327976198,1716732691999,-1027.88,0.00030136,4]
[327976199,1716732692009,-2390.71,0.00030136,4]
[327976200,1716732692019,-720.94,0.00030136,4]
[327976201,1716732692029,-884.01,0.00030136,4]
[327976202,1716732692039,-571.26,0.00030136,4]
[327976203,1716732692049,-1408.04,0.00030136,4]
[327976204,1716732692059,-500.0,0.00030136,4]
[327976205,1716732692069,-500.0,0.00030136,4]
[327976206,1716732692079,-500.0,0.00030136,4]
[327976207,1716732692089,-634.63603235,0.00030136,4]
[327976208,1716732692099,-1268.26,0.00030136,4]
[327976209,1716732692108,-1085.42,0.00030136,4]
[327976210,1716732692118,-8694.34,0.00030136,4]
[327976211,1716732692127,-500.0,0.00030136,4]
[327976212,1716732692137,-1268.05,0.00030136,4]
[327976213,1716732692147,-1448.06,0.00030136,4]
[327976214,1716732692157,-972.62,0.00030136,4]
[327976215,1716732692167,-3904.28,0.00030136,4]
[327976216,1716732692177,-573.16,0.00030136,4]
[327976217,1716732692188,-914.87,0.00030136,4]
[327976218,1716732692197,-1089.59,0.00030136,4]
[327976219,1716732692207,-500.0,0.00030136,4]
[327976220,1716732692218,-885.34,0.00030136,4]
[327976221,1716732692228,-591.51,0.00030136,4]
[327976222,1716732692238,-500.0,0.00030136,4]
[327976223,1716732692248,-1079.94,0.00030136,4]
[327976224,1716732692258,-879.76,0.00030136,4]
[327976225,1716732692268,-1841.81,0.00030136,4]
[327976226,1716732692278,-500.0,0.00030136,4]
[327976227,1716732692288,-1077.58,0.00030136,4]
[327976228,1716732692298,-625.43,0.00030136,4]
[327976229,1716732692308,-500.0,0.00030136,4]
[327976230,1716732692318,-710.46,0.00030136,4]
[327976231,1716732692329,-647.72,0.00030136,4]
[327976232,1716732692339,-568.85,0.00030136,4]
[327976233,1716732692554,-678.18,0.00030136,4]
[327976234,1716732692565,-869.84,0.00030136,4]
[327976235,1716732692576,-500.0,0.00030136,4]
[327976236,1716732692585,-500.0,0.00030136,4]
[327976237,1716732692595,-717.42,0.00030136,4]
[327976238,1716732692605,-576.0,0.00030136,4]
[327976239,1716732692614,-1137.45,0.00030136,4]
[327976240,1716732692624,-500.0,0.00030136,4]
[327976241,1716732692634,-500.0,0.00030136,4]
[327976242,1716732692644,-500.0,0.00030136,4]
[327976243,1716732692654,-1101.55,0.00030136,4]
[327976244,1716732692663,-500.0,0.00030136,4]
[327976245,1716732692673,-504.89,0.00030136,4]
[327976246,1716732692683,-623.77,0.00030136,4]
[327976247,1716732692693,-570.33,0.00030136,4]
[327976248,1716732692703,-853.64,0.00030136,4]
[327976249,1716732692713,-1592.22,0.00030136,4]
[327976250,1716732692723,-1027.97,0.00030136,4]
[327976251,1716732692732,-500.0,0.00030136,4]
[327976252,1716732692742,-1044.37,0.00030136,4]
[327976253,1716732692752,-1313.69,0.00030136,4]
[327976254,1716732692761,-624.18,0.00030136,4]
[327976255,1716732692771,-1190.26,0.00030136,4]
[327976256,1716732692781,-4137.91,0.00030136,4]
[327976257,1716732692790,-1036.79,0.00030136,4]
[327976258,1716732692799,-500.0,0.00030136,4]
[327976259,1716732692810,-500.0,0.00030136,4]
[327976260,1716732692819,-850.51,0.00030136,4]
[327976261,1716732692829,-916.61,0.00030136,4]
[327976262,1716732692839,-500.0,0.00030136,4]
[327976263,1716732692848,-1474.98,0.00030136,4]
[327976264,1716732692858,-707.12,0.00030136,4]
[327976265,1716732692868,-500.0,0.00030136,4]
[327976266,1716732692877,-2412.83,0.00030136,4]
[327976267,1716732692887,-500.0,0.00030136,4]
[327976268,1716732692896,-500.0,0.00030136,4]
[327976269,1716732692906,-687.58,0.00030136,4]
[327976270,1716732692915,-1038.84,0.00030136,4]
[327976271,1716732692925,-500.0,0.00030136,2]
[327976272,1716732692936,-500.0,0.00030136,4]
[327976273,1716732692946,-500.0,0.00030136,4]
[327976274,1716732692956,-928.91,0.00030136,4]
[327976275,1716732692966,-654.73,0.00030136,4]
[327976276,1716732692975,-500.0,0.00030136,4]
[327976277,1716732692984,-592.19,0.00030136,4]
[327976278,1716732692994,-502.52,0.00030136,4]
[327976279,1716732693004,-500.0,0.00030136,4]
[327976280,1716732693014,-500.0,0.00030136,4]
[327976281,1716732693024,-1244.5,0.00030136,4]
[327976282,1716732693035,-586.69,0.00030136,4]
[327976283,1716732693046,-827.03,0.00030136,4]
[327976284,1716732693055,-901.87,0.00030136,4]
[327976285,1716732693065,-793.2,0.00030136,4]
[327976286,1716732693074,-501.48,0.00030136,4]
[327976287,1716732693084,-709.61,0.00030136,4]
[327976288,1716732693094,-151.0,0.00030137,7]
[327976289,1716732693103,-151.0,0.00030137,7]
[327976290,1716732693113,-151.0,0.00030137,7]
[327976291,1716732693122,-151.0,0.00030137,7]
[327976292,1716732693132,-155.435469,0.00030137,7]
[327976293,1716732693141,-153.93863298,0.00030191,7]
[327976294,1716732693151,-796.37,0.000302,2]
[327976295,1716732693160,-156.96255257,0.00030244,7]
[327976296,1716732693170,-156.1736614,0.00030268,7]
[327976297,1716732693179,-159.77442624,0.00030281,7]
[327976298,1716732693188,-150.0,0.000303,6]
[327976299,1716732693198,-4113.35559987,0.0003031,2]
[327976300,1716732693208,-156.1736614,0.00030317,7]
[327976301,1716732693218,-153.31773316,0.00030334,7]
[327976302,1716732693227,-157.86209062,0.00030374,7]
[327976303,1716732693236,-445.0,0.000304,19]
[327976304,1716732693247,-220.25978222,0.0003041,5]
[327976305,1716732693256,-500.0,0.0003041,4]
[327976306,1716732693266,-445.05586609,0.0003041,4]
[327976307,1716732693275,-500.0,0.0003041,4]
[327976308,1716732693284,-500.0,0.0003041,4]
[327976309,1716732693293,-867.51,0.0003041,4]
[327976310,1716732693303,-232.47942692,0.0003041,4]
[327976311,1716732693313,-500.0,0.0003041,4]
[327976312,1716732693322,-613.37,0.0003041,4]
[327976313,1716732693332,-500.0,0.0003041,4]
[327976314,1716732693341,-689.25,0.0003041,4]
[327976315,1716732693351,-912.17,0.0003041,4]
[327976316,1716732693360,-500.0,0.0003041,4]
[327976317,1716732693370,-500.0,0.0003041,4]
[327976318,1716732693379,-577.1,0.0003041,4]
[327976319,1716732693389,-3083.08,0.0003041,4]
[327976320,1716732693398,-389.30481108,0.0003041,4]
[327976321,1716732693408,-500.0,0.0003041,4]
[327976322,1716732693417,-691.79,0.0003041,4]
[327976323,1716732693427,-500.0,0.0003041,4]
[327976324,1716732693438,-500.0,0.0003041,4]
[327976325,1716732693447,-1003.57,0.0003041,4]
[327976326,1716732693457,-702.93,0.0003041,4]
[327976327,1716732693467,-500.0,0.0003041,4]
[327976328,1716732693480,-500.0,0.0003041,4]
[327976329,1716732693490,-900.58,0.0003041,4]
[327976330,1716732693500,-500.0,0.0003041,4]
[327976331,1716732693511,-500.0,0.0003041,4]
[327976332,1716732693520,-891.34,0.0003041,4]
[327976333,1716732693530,-838.16,0.0003041,2]